bitfinex/quotes_BTCUSD_20250515
["timestamp","ask_amount","ask_price","bid_price","bid_amount"]
[1747336596033,0.00974273,103140.0,103130.0,1.23824345]
[1747336597058,0.00974273,103140.0,103130.0,1.43652345]
[1747336597735,0.00974264,103140.0,103130.0,1.43652345]
[1747336598889,0.00974264,103140.0,103130.0,1.09748045]
[1747336599067,0.00974264,103140.0,103130.0,1.43652345]
[1747336599707,4.793e-05,103140.0,103130.0,1.4510643]
[1747336599918,4.793e-05,103140.0,103130.0,1.4661643]
[1747336602108,4.793e-05,103140.0,103130.0,1.4510643]
[1747336602328,4.793e-05,103140.0,103130.0,1.0555043]
[1747336602576,4.793e-05,103140.0,103130.0,1.4504243]
[1747336603079,4.793e-05,103140.0,103130.0,1.1104243]
[1747336603299,4.793e-05,103140.0,103130.0,1.4504243]
[1747336603929,4.793e-05,103140.0,103130.0,1.4655243]
[1747336604955,4.793e-05,103140.0,103130.0,1.8045673]
[1747336605154,4.793e-05,103140.0,103130.0,1.4655243]
[1747336607677,4.793e-05,103140.0,103130.0,1.47599672]
[1747336610469,4.793e-05,103140.0,103130.0,1.50191136]
[1747336611006,4.793e-05,103140.0,103130.0,1.44569672]
[1747336611363,4.793e-05,103140.0,103130.0,1.44553672]
[1747336611647,4.793e-05,103140.0,103130.0,1.46213672]
[1747336612617,4.793e-05,103140.0,103130.0,1.48806396]
[1747336615887,4.793e-05,103140.0,103130.0,1.84370696]
[1747336617499,4.793e-05,103140.0,103130.0,1.50466396]
[1747336623012,4.793e-05,103140.0,103130.0,1.48806396]
[1747336623579,4.793e-05,103140.0,103130.0,1.14902096]
[1747336623787,4.793e-05,103140.0,103130.0,1.07670396]
[1747336624183,4.793e-05,103140.0,103130.0,1.47142396]
[1747336624381,4.793e-05,103140.0,103130.0,1.48792396]
[1747336628315,4.793e-05,103140.0,103130.0,1.82696696]
[1747336628733,4.793e-05,103140.0,103130.0,1.84296696]
[1747336629524,0.0151,103170.0,103150.0,0.54358634]
[1747336629747,0.03187925,103170.0,103160.0,0.66124435]
[1747336629922,0.01677925,103170.0,103160.0,0.99930589]
[1747336630761,0.00047925,103170.0,103160.0,0.99930589]
[1747336631386,0.04257133,103170.0,103160.0,0.66026289]
[1747336631579,0.2655034,103170.0,103160.0,0.65056987]
[1747336631781,0.27519614,103170.0,103160.0,0.66026316]
[1747336631992,0.07164851,103170.0,103160.0,0.66995618]
[1747336632345,0.07164841,103170.0,103160.0,0.66995618]
[1747336632751,0.0522636,103170.0,103160.0,1.00899918]
[1747336633396,0.06195605,103170.0,103160.0,1.00899918]
[1747336633594,0.06295605,103170.0,103160.0,1.00899918]
[1747336634039,0.07264851,103170.0,103160.0,1.00899918]
[1747336634210,0.06295596,103170.0,103160.0,1.00899918]
[1747336634418,0.07264841,103170.0,103160.0,1.00899918]
[1747336634763,0.06295596,103170.0,103160.0,1.00899918]
[1747336634965,0.00147925,103170.0,103160.0,1.02559918]
[1747336635200,0.00147925,103170.0,103160.0,1.00899918]
[1747336635393,0.01797925,103170.0,103160.0,1.00899918]
[1747336636177,0.01005102,103180.0,103170.0,0.22293188]
[1747336636377,0.03638585,103180.0,103170.0,0.65928428]
[1747336636584,0.02669471,103180.0,103170.0,0.65928428]
[1747336636824,0.01019471,103180.0,103170.0,1.39364428]
[1747336636978,0.01019471,103180.0,103170.0,1.73268728]
[1747336637392,0.01119471,103180.0,103170.0,1.73268728]
[1747336637730,0.01219471,103180.0,103170.0,1.73268728]
[1747336637945,0.01119471,103180.0,103170.0,1.74928728]
[1747336638345,0.01119471,103180.0,103170.0,1.76382813]
[1747336638757,0.01019471,103180.0,103170.0,1.78970429]
[1747336639099,0.01019471,103180.0,103170.0,1.45066129]
[1747336639401,0.01019471,103180.0,103170.0,1.76156162]
[1747336641061,0.03598566,103180.0,103170.0,0.66024128]
[1747336641268,0.02629471,103180.0,103170.0,1.39360428]
[1747336641467,0.05198585,103180.0,103170.0,0.66024128]
[1747336641664,0.07136841,103180.0,103170.0,1.3839122]
[1747336641916,0.07136841,103180.0,103170.0,1.39360428]
[1747336642204,0.25551403,103180.0,103170.0,0.31254902]
[1747336642821,0.25551403,103180.0,103170.0,0.31454902]
[1747336643047,0.01019471,103180.0,103170.0,0.65928419]
[1747336643246,0.03558575,103180.0,103170.0,1.00801927]
[1747336643454,0.02689471,103180.0,103170.0,1.00897627]
[1747336643659,0.01119471,103180.0,103170.0,1.00897627]
[1747336643865,0.01219471,103180.0,103170.0,1.00897627]
[1747336644512,0.01219471,103180.0,103170.0,1.34801927]
[1747336644715,0.01119471,103180.0,103170.0,1.36451927]
[1747336644914,0.01119471,103180.0,103170.0,1.37906012]
[1747336645539,0.01019471,103180.0,103170.0,1.37906012]
[1747336645740,0.01019471,103180.0,103170.0,1.39626012]
[1747336645945,0.10968926,103200.0,103190.0,0.22288867]
[1747336646117,0.10968926,103200.0,103190.0,0.65924107]
[1747336646118,0.1,103200.0,103190.0,0.65924107]
[1747336646319,0.10968926,103200.0,103190.0,0.65924107]
[1747336646723,0.1,103200.0,103190.0,0.65924107]
[1747336646922,0.1,103200.0,103190.0,0.99924107]
[1747336647866,0.1,103200.0,103190.0,1.01378192]
[1747336649073,0.1,103200.0,103190.0,1.03038192]
[1747336649258,0.1,103200.0,103190.0,1.38542492]
[1747336649452,0.1,103200.0,103190.0,1.04638192]
[1747336650159,0.1,103200.0,103190.0,1.01378192]
[1747336650403,0.1,103200.0,103190.0,1.01478192]
[1747336651119,0.12906769,103200.0,103190.0,1.00024107]
[1747336651321,0.14526759,103200.0,103190.0,1.39444107]
[1747336651554,0.1290675,103200.0,103190.0,1.00024107]
[1747336651743,0.11937824,103200.0,103190.0,1.39444107]
[1747336652381,0.10968907,103200.0,103190.0,1.39444107]
[1747336652583,0.1,103200.0,103190.0,1.40898192]
[1747336653673,0.17035779,103200.0,103190.0,0.31150796]
[1747336653846,0.16066797,103200.0,103190.0,0.33088864]
[1747336654051,0.16066788,103200.0,103190.0,1.00993164]
[1747336654222,0.17035752,103200.0,103190.0,1.00993164]
[1747336654468,0.16066788,103200.0,103190.0,1.00993164]
[1747336654618,0.1,103200.0,103190.0,1.03957249]
[1747336655173,0.1,103200.0,103190.0,1.23669249]
[1747336657389,0.09992326,103200.0,103190.0,1.23669249]
[1747336660032,0.09992326,103200.0,103190.0,1.00993164]
[1747336660369,0.13072326,103200.0,103190.0,1.06504864]
[1747336660553,0.13072326,103200.0,103190.0,1.00993164]
[1747336660763,0.14041243,103200.0,103190.0,1.00993164]
[1747336661310,0.14041243,103200.0,103190.0,1.20693164]
[1747336662300,0.15979161,103200.0,103190.0,0.64081739]
[1747336662525,0.25528876,103190.0,103180.0,0.19383601]
[1747336662730,0.0158,103170.0,103160.0,0.94642253]
[1747336662935,0.0324,103180.0,103170.0,0.21323952]
[1747336663151,0.03518199,103180.0,103170.0,0.65928428]
[1747336663424,0.27469254,103180.0,103170.0,0.3105492]
[1747336663630,0.27469254,103180.0,103170.0,0.32024137]
[1747336663831,0.07116473,103180.0,103170.0,0.32993345]
[1747336663956,0.08085634,103180.0,103170.0,0.32993345]
[1747336664156,0.08085625,103180.0,103170.0,0.66897645]
[1747336664356,0.07116464,103180.0,103170.0,0.66897645]
[1747336664953,0.08085625,103180.0,103170.0,0.66897645]
[1747336665916,0.080857,103180.0,103170.0,0.66897645]
[1747336666091,0.07116596,103180.0,103170.0,0.66897645]
[1747336667013,0.06147426,103180.0,103170.0,0.66897645]
[1747336667238,0.05456577,103180.0,103170.0,0.66897645]
[1747336667595,0.24840178,103180.0,103170.0,0.65928437]
[1747336667788,0.26480178,103180.0,103170.0,0.65928437]
[1747336667988,0.26480178,103180.0,103170.0,0.66897645]
[1747336668238,0.07096577,103180.0,103170.0,0.66897645]
[1747336668748,0.07096577,103180.0,103170.0,0.32993345]
[1747336668967,0.08065747,103180.0,103170.0,0.32993345]
[1747336669152,0.05158265,103180.0,103170.0,0.66897645]
[1747336669329,0.03518265,103180.0,103170.0,0.66897645]
[1747336669743,0.07086596,103180.0,103170.0,0.66897645]
[1747336669907,0.05456596,103180.0,103170.0,0.66897645]
[1747336670574,0.24531951,103180.0,103170.0,0.0973094]
[1747336671000,0.24531951,103180.0,103170.0,0.2911642]
[1747336671205,0.24531951,103180.0,103170.0,0.30085694]
[1747336671372,0.24531951,103180.0,103170.0,0.31054958]
[1747336671551,0.24531951,103180.0,103170.0,0.32024203]
[1747336672757,0.23562781,103180.0,103170.0,0.30085694]
[1747336672969,0.23562781,103180.0,103170.0,0.31054958]
[1747336673155,0.23562781,103180.0,103170.0,0.32024213]
[1747336673390,0.23562781,103180.0,103170.0,0.3299344]
[1747336674060,0.23562781,103180.0,103170.0,0.22293273]
[1747336675570,0.23562781,103180.0,103170.0,0.24231717]
[1747336676713,0.24531932,103180.0,103170.0,0.24231717]
[1747336676913,0.24531932,103180.0,103170.0,0.24231651]
[1747336677859,0.06117435,103180.0,103170.0,0.24231651]
[1747336678325,0.26470206,103180.0,103170.0,0.24231651]
[1747336678526,0.27439386,103180.0,103170.0,0.24231651]
[1747336679405,0.07086605,103180.0,103170.0,0.24231651]
[1747336679613,0.05208462,103170.0,103160.0,0.00014369]
[1747336679815,0.2459398,103170.0,103160.0,0.00014369]
[1747336681253,0.2459398,103170.0,103160.0,0.00114369]
[1747336681808,0.2459398,103170.0,103160.0,0.00014369]
[1747336682015,0.5849828,103170.0,103160.0,0.00014369]
[1747336682565,0.2459398,103170.0,103160.0,0.00014369]
[1747336683117,0.2479398,103170.0,103160.0,0.00014369]
[1747336684196,0.2499398,103170.0,103160.0,0.00014369]
[1747336690571,0.5889828,103170.0,103160.0,0.00014369]
[1747336691184,0.7860228,103170.0,103160.0,0.00014369]
[1747336692269,1.5623752,103170.0,103160.0,0.00014369]
[1747336692439,1.57691605,103170.0,103160.0,0.00014369]
[1747336692808,2.27011605,103170.0,103160.0,0.00014369]
[1747336693255,2.26811605,103170.0,103160.0,0.00014369]
[1747336693533,2.26611605,103170.0,103160.0,0.00014369]
[1747336693746,2.37942545,103170.0,103160.0,0.00014369]
[1747336693946,2.79910545,103170.0,103160.0,0.00014369]
[1747336694147,2.79910545,103170.0,103120.0,0.07794612]
[1747336694148,0.24492232,103130.0,103120.0,0.07794612]
[1747336694298,0.24492232,103130.0,103120.0,0.07842537]
[1747336695412,0.24492232,103130.0,103120.0,0.00047925]
[1747336696731,0.24492232,103130.0,103120.0,0.00147925]
[1747336696934,0.24492232,103130.0,103120.0,0.00247925]
[1747336698566,0.2352263,103130.0,103120.0,0.00247925]
[1747336700018,0.02908807,103130.0,103120.0,0.57425927]
[1747336700221,0.03878428,103130.0,103120.0,0.58935927]
[1747336700354,0.04848068,103130.0,103120.0,0.58935927]
[1747336700550,0.02908797,103130.0,103120.0,0.58935927]
[1747336700776,0.03878428,103130.0,103120.0,0.25031627]
[1747336701380,0.02908797,103130.0,103120.0,0.25031627]
[1747336701582,0.03878428,103130.0,103120.0,0.25031627]
[1747336701781,0.24241067,103130.0,103120.0,0.25031627]
[1747336702311,0.02908854,103130.0,103120.0,0.24061949]
[1747336702544,0.03878494,103130.0,103120.0,0.25031627]
[1747336703283,0.22299728,103140.0,103130.0,0.21332269]
[1747336704333,0.23369218,103140.0,103130.0,0.22301881]
[1747336704538,0.22399728,103140.0,103130.0,0.21332269]
[1747336704769,0.2143021,103140.0,103130.0,0.21332269]
[1747336704991,0.2143021,103140.0,103130.0,0.21332288]
[1747336705203,0.20460673,103140.0,103130.0,0.21332288]
[1747336705906,0.19491118,103140.0,103130.0,0.20362648]
[1747336706120,0.19591118,103140.0,103130.0,0.20362648]
[1747336706740,0.21131118,103140.0,103130.0,0.21332279]
[1747336707476,0.21131118,103140.0,103130.0,0.20362648]
[1747336707704,0.21131118,103140.0,103130.0,0.21332288]
[1747336708901,0.21131118,103140.0,103130.0,0.20362648]
[1747336710493,0.00969631,103130.0,103120.0,0.66527428]
[1747336710691,0.2299227,103130.0,103120.0,0.19442804]
[1747336710913,0.2299227,103130.0,103120.0,0.20412538]
[1747336711082,0.2299227,103130.0,103120.0,0.21382263]
[1747336711284,0.2299227,103130.0,103120.0,0.22351978]
[1747336712053,0.2133227,103130.0,103120.0,0.22351978]
[1747336712438,0.2299227,103130.0,103120.0,0.19442804]
[1747336712617,0.2299227,103130.0,103120.0,0.20412547]
[1747336713037,0.2299227,103130.0,103120.0,0.21382262]
[1747336713204,0.2133227,103130.0,103120.0,0.21382262]
[1747336715723,0.2133227,103130.0,103120.0,0.22351968]
[1747336715942,0.22301919,103130.0,103120.0,0.58825955]
[1747336716699,0.01939271,103130.0,103120.0,0.25891333]
[1747336716905,0.22301872,103130.0,103120.0,0.25891333]
[1747336717251,0.02908873,103130.0,103120.0,0.25891333]
[1747336717467,0.22301872,103130.0,103120.0,0.24921655]
[1747336717631,0.23271521,103130.0,103120.0,0.24921655]
[1747336719179,0.01939233,103130.0,103120.0,0.24921655]
[1747336719392,0.21330219,103140.0,103130.0,0.2036263]
[1747336719617,0.20360673,103140.0,103130.0,0.20362648]
[1747336719864,0.20360673,103140.0,103130.0,0.21332288]
[1747336720293,0.21041118,103140.0,103130.0,0.21332288]
[1747336720935,0.01069508,103140.0,103130.0,0.23271521]
[1747336721150,0.0106948,103140.0,103130.0,0.69536345]
[1747336721360,0.03008488,103140.0,103130.0,0.69536345]
[1747336721613,0.03008488,103140.0,103130.0,0.71046345]
[1747336721819,0.001,103140.0,103130.0,1.05046345]
[1747336722573,0.02908206,103150.0,103140.0,0.59409672]
[1747336722777,0.00969386,103150.0,103140.0,1.03044912]
[1747336722978,0.21326252,103160.0,103150.0,0.21328132]
[1747336723725,0.21326252,103160.0,103150.0,0.22297537]
[1747336723977,0.21326252,103160.0,103150.0,0.21328132]
[1747336724184,0.21326252,103160.0,103150.0,0.2491697]
[1747336724566,0.21426252,103160.0,103150.0,0.2491697]
[1747336724765,0.0300798,103160.0,103150.0,0.69521606]
[1747336725175,0.03007914,103160.0,103150.0,0.69521606]
[1747336725338,0.01169283,103160.0,103150.0,0.69521606]
[1747336725539,0.02138585,103160.0,103150.0,0.71061606]
[1747336725781,0.03107915,103160.0,103150.0,0.71061606]
[1747336725962,0.04077264,103160.0,103150.0,0.71061606]
[1747336726600,0.03107915,103160.0,103150.0,0.71061606]
[1747336726790,0.04077264,103160.0,103150.0,0.71061606]
[1747336727098,0.03107915,103160.0,103150.0,0.71061606]
[1747336727308,0.02138585,103160.0,103150.0,0.71061606]
[1747336727514,0.01169283,103160.0,103150.0,0.71061606]
[1747336727678,0.03107915,103160.0,103150.0,0.71061606]
[1747336728097,0.02138585,103160.0,103150.0,0.71061606]
[1747336728279,0.03107915,103160.0,103150.0,0.71061606]
[1747336728494,0.03977264,103160.0,103150.0,0.71061606]
[1747336728837,0.03007905,103160.0,103150.0,0.71061606]
[1747336728980,0.02907905,103160.0,103150.0,0.71061606]
[1747336729378,0.03877244,103160.0,103150.0,0.71061606]
[1747336730001,0.04846593,103160.0,103150.0,0.71061606]
[1747336730720,0.24233952,103160.0,103150.0,0.65932796]
[1747336730938,0.23945414,103160.0,103150.0,0.30089639]
[1747336731222,0.23945414,103160.0,103150.0,0.31059082]
[1747336731994,0.20358681,103150.0,103140.0,0.74028664]
[1747336732138,0.22297528,103150.0,103140.0,0.84729122]
[1747336732654,0.22297528,103150.0,103140.0,0.88188129]
[1747336732973,0.22297528,103150.0,103140.0,1.22092429]
[1747336733319,0.22297528,103150.0,103140.0,1.22292429]
[1747336733560,0.01938847,103150.0,103140.0,1.23261919]
[1747336733764,0.05248622,103160.0,103140.0,1.23261844]
[1747336733945,0.04557933,103160.0,103140.0,1.23261853]
[1747336734341,0.05527282,103160.0,103150.0,0.21328114]
[1747336734678,0.05527282,103160.0,103150.0,0.22297528]
[1747336734880,0.05527282,103160.0,103150.0,0.21328114]
[1747336735524,0.05527282,103160.0,103150.0,0.22297547]
[1747336736661,0.02619283,103160.0,103150.0,0.24236348]
[1747336736921,0.04557895,103160.0,103150.0,0.24236348]
[1747336737119,0.04557895,103160.0,103150.0,0.58140648]
[1747336737613,0.04557895,103160.0,103150.0,0.24236348]
[1747336737999,0.02907895,103160.0,103150.0,0.24236348]
[1747336738204,0.21323962,103170.0,103160.0,0.19387359]
[1747336738528,0.22893962,103170.0,103160.0,0.20356726]
[1747336738734,0.22893962,103170.0,103160.0,0.21326075]
[1747336738987,0.22893962,103170.0,103160.0,0.21326084]
[1747336739179,0.22893962,103170.0,103160.0,0.22295433]
[1747336739376,0.22993962,103170.0,103160.0,0.21326084]
[1747336739679,0.23093962,103170.0,103160.0,0.21326084]
[1747336740061,0.22124735,103170.0,103160.0,0.21326084]
[1747336740259,0.22124735,103170.0,103160.0,0.20356726]
[1747336740465,0.22124735,103170.0,103160.0,0.21364577]
[1747336741537,0.24063236,103170.0,103160.0,0.22333926]
[1747336741736,0.24063236,103170.0,103160.0,0.23303265]
[1747336741949,0.24063236,103170.0,103160.0,0.68877137]
[1747336741950,0.02138415,103170.0,103160.0,0.68877137]
[1747336742151,0.02138415,103170.0,103160.0,0.70457137]
[1747336742152,0.03107642,103170.0,103160.0,0.70457137]
[1747336742364,0.04076897,103170.0,103160.0,0.70457146]
[1747336742560,0.23462377,103170.0,103160.0,0.68518468]
[1747336742813,0.05046161,103170.0,103160.0,0.69487788]
[1747336742977,0.05046237,103170.0,103160.0,0.67907788]
[1747336743179,0.24431717,103170.0,103160.0,0.67907788]
[1747336743406,0.23462509,103170.0,103160.0,0.34003488]
[1747336743805,0.23462509,103170.0,103160.0,0.33034168]
[1747336744622,0.23074018,103170.0,103160.0,0.32064857]
[1747336744825,0.22104754,103170.0,103160.0,0.3012615]
[1747336745201,0.22104754,103170.0,103160.0,0.31095517]
[1747336745393,0.22104754,103170.0,103160.0,0.32064866]
[1747336745602,0.22104754,103170.0,103160.0,0.32064875]
[1747336745919,0.22104754,103170.0,103160.0,0.33034214]
[1747336746563,0.22104754,103170.0,103160.0,0.33034224]
[1747336747317,0.002,103170.0,103160.0,0.70387156]
[1747336747524,0.03107651,103170.0,103160.0,0.70387156]
[1747336747761,0.002,103170.0,103160.0,0.71887156]
[1747336747962,0.01169189,103170.0,103160.0,0.71887156]
[1747336748168,0.002,103170.0,103160.0,1.05887156]
[1747336748344,0.002,103170.0,103160.0,1.25555156]
[1747336749869,0.001,103170.0,103160.0,1.25555156]
[1747336750278,0.0290736,103180.0,103170.0,0.22293188]
[1747336750490,0.03890882,103180.0,103170.0,0.65928428]
[1747336750802,0.04860052,103180.0,103170.0,0.65928428]
[1747336751010,0.24243653,103180.0,103170.0,0.0973094]
[1747336751216,0.23815473,103180.0,103170.0,0.3105492]
[1747336751415,0.23915473,103180.0,103170.0,0.31054929]
[1747336751821,0.24015473,103180.0,103170.0,0.31054929]
[1747336752050,0.24015473,103180.0,103170.0,0.32024156]
[1747336752951,0.24015473,103180.0,103170.0,0.0973094]
[1747336753134,0.23637142,103180.0,103170.0,0.0973094]
[1747336753273,0.22913952,103170.0,103160.0,0.55326047]
[1747336753486,0.24852471,103170.0,103160.0,0.31056987]
[1747336753686,0.25821735,103170.0,103160.0,0.32026298]
[1747336753914,0.06436255,103170.0,103160.0,0.32026298]
[1747336754162,0.25473273,103170.0,103160.0,0.0973094]
[1747336754369,0.24504018,103170.0,103160.0,0.31057005]
[1747336754580,0.2256548,103170.0,103150.0,0.21868681]
[1747336754731,0.22976065,103160.0,103150.0,0.31059054]
[1747336755184,0.22976065,103160.0,103150.0,0.31059035]
[1747336755397,0.22976065,103160.0,103150.0,0.3008963]
[1747336755601,0.22006726,103160.0,103150.0,0.30089639]
[1747336755779,0.23596726,103160.0,103150.0,0.31059091]
[1747336755979,0.22006726,103160.0,103150.0,0.32028534]
[1747336756179,0.22006726,103160.0,103150.0,0.32997958]
[1747336757329,0.22627359,103160.0,103150.0,0.0973094]
[1747336758280,0.21037359,103160.0,103150.0,0.30089639]
[1747336758909,0.21037359,103160.0,103150.0,0.0973094]
[1747336759114,0.22557359,103160.0,103150.0,0.0973094]
[1747336761364,0.22557359,103160.0,103150.0,0.29120178]
[1747336761611,0.21037359,103160.0,103150.0,0.31059073]
[1747336762395,0.21037359,103160.0,103150.0,0.31259073]
[1747336762805,0.21037359,103160.0,103150.0,0.3028963]
[1747336763482,0.21037359,103160.0,103150.0,0.31259063]
[1747336763684,0.19387359,103160.0,103150.0,0.31259063]
[1747336763886,0.21326028,103160.0,103150.0,0.66902183]
[1747336764167,0.21326028,103160.0,103150.0,0.66902201]
[1747336764669,0.21326028,103160.0,103150.0,0.32997901]
[1747336765797,0.21326028,103160.0,103150.0,0.32228487]
[1747336766128,0.21326028,103160.0,103150.0,0.32028487]
[1747336766576,0.21326028,103160.0,103150.0,0.31059063]
[1747336768621,0.20356708,103160.0,103150.0,0.3008963]
[1747336768849,0.22437359,103160.0,103150.0,0.30089639]
[1747336769127,0.22437359,103160.0,103150.0,0.29120178]
[1747336769345,0.20907359,103160.0,103150.0,0.31059091]
[1747336769565,0.20907359,103160.0,103150.0,0.32028534]
[1747336769809,0.22437359,103160.0,103150.0,0.0973094]
[1747336770049,0.21328132,103150.0,103140.0,0.39992655]
[1747336770272,0.22297546,103150.0,103140.0,0.51662603]
[1747336770506,0.24786951,103150.0,103140.0,0.50693113]
[1747336770727,0.21880673,103140.0,103120.0,0.41536547]
[1747336770974,0.00969584,103130.0,103120.0,0.43475931]
[1747336772998,0.038784,103130.0,103120.0,0.6511309]
[1747336773453,0.25381825,103130.0,103120.0,0.30343469]
[1747336773685,0.25381825,103130.0,103120.0,0.31513184]
[1747336774106,0.25381825,103130.0,103120.0,0.3248288]
[1747336774705,0.23861825,103130.0,103120.0,0.3248288]
[1747336775671,0.23861825,103130.0,103120.0,0.31513184]
[1747336775878,0.23861825,103130.0,103120.0,0.3248289]
[1747336776103,0.22892232,103130.0,103120.0,0.3248289]
[1747336776350,0.2357263,103130.0,103120.0,0.31513184]
[1747336776819,0.22602999,103130.0,103120.0,0.00447925]
[1747336777225,0.22602999,103130.0,103120.0,0.20812529]
[1747336777426,0.02529574,103130.0,103120.0,0.20812529]
[1747336777633,0.01939205,103130.0,103120.0,0.66187153]
[1747336777844,0.23271455,103130.0,103120.0,0.31313175]
[1747336778082,0.23271455,103130.0,103120.0,0.32282862]
[1747336778482,0.23271455,103130.0,103120.0,0.32082862]
[1747336779214,0.23271455,103130.0,103120.0,0.3305254]
[1747336779642,0.02908807,103130.0,103120.0,0.3305254]
[1747336780448,0.24570455,103140.0,103130.0,0.22301853]
[1747336780652,0.22549238,103150.0,103140.0,0.20360673]
[1747336780820,0.24488132,103150.0,103140.0,0.21330219]
[1747336781031,0.03598838,103150.0,103140.0,0.33000185]
[1747336781183,0.24926989,103150.0,103140.0,0.33000185]
[1747336781598,0.24926989,103150.0,103140.0,0.32030686]
[1747336781893,0.24926989,103150.0,103140.0,0.33000204]
[1747336782095,0.03898838,103150.0,103140.0,0.33969712]
[1747336782319,0.04177639,103150.0,103140.0,0.69433947]
[1747336782520,0.03208206,103150.0,103140.0,0.69433947]
[1747336782722,0.04177649,103150.0,103140.0,0.69433947]
[1747336782881,0.04277649,103150.0,103140.0,0.35529647]
[1747336783527,0.03308206,103150.0,103140.0,0.35529647]
[1747336783709,0.03308177,103150.0,103140.0,0.69433947]
[1747336783910,0.03008177,103150.0,103140.0,0.69433947]
[1747336784387,0.0407762,103150.0,103140.0,0.69433947]
[1747336784571,0.0407761,103150.0,103140.0,0.36548179]
[1747336784973,0.03108177,103150.0,103140.0,0.36548179]
[1747336785208,0.24728095,103150.0,103140.0,0.01018532]
[1747336785385,0.24728095,103150.0,103140.0,0.2040965]
[1747336785564,0.20971118,103140.0,103130.0,0.21332269]
[1747336785770,0.23560655,103140.0,103130.0,0.0973094]
[1747336785963,0.23560655,103140.0,103130.0,0.31063228]
[1747336786184,0.23560655,103140.0,103130.0,0.30093588]
[1747336787680,0.23560655,103140.0,103130.0,0.10700589]
[1747336787881,0.23560655,103140.0,103130.0,0.10728404]
[1747336788200,0.23560655,103140.0,103130.0,0.00997464]
[1747336788382,0.2036263,103130.0,103120.0,0.55382263]
[1747336788582,0.2036263,103130.0,103120.0,0.65113203]
[1747336788771,0.21332251,103130.0,103120.0,0.66082909]
[1747336789675,0.21332251,103130.0,103120.0,0.66282909]
[1747336790244,0.21332251,103130.0,103120.0,0.66482909]
[1747336790660,0.01939252,103130.0,103120.0,1.02986887]
[1747336790884,0.02549471,103140.0,103130.0,0.21332251]
[1747336791099,0.22299708,103140.0,103130.0,0.30093579]
[1747336791303,0.213302,103140.0,103130.0,0.30093579]
[1747336791532,0.20360673,103140.0,103130.0,0.29123939]
[1747336791730,0.20360673,103140.0,103130.0,0.30093588]
[1747336791992,0.22010673,103140.0,103130.0,0.30093588]
[1747336792355,0.22010673,103140.0,103130.0,0.31063228]
[1747336792733,0.22010673,103140.0,103130.0,0.33057806]
[1747336792941,0.20360673,103140.0,103130.0,0.33057806]
[1747336793418,0.00969499,103140.0,103130.0,0.69511587]
[1747336793642,0.01938951,103140.0,103130.0,0.68541966]
[1747336793850,0.00969414,103150.0,103140.0,0.23269189]
[1747336794054,0.02908233,103150.0,103140.0,0.69453919]
[1747336794236,0.03877676,103150.0,103140.0,0.69453919]
[1747336794591,0.03877676,103150.0,103140.0,0.35549619]
[1747336795216,0.03977676,103150.0,103140.0,0.35549619]
[1747336795415,0.24336375,103150.0,103140.0,0.35549619]
[1747336795623,0.001,103150.0,103140.0,1.12868531]
[1747336795830,0.0162,103180.0,103170.0,0.21323943]
[1747336796010,0.04139039,103190.0,103180.0,0.20352762]
[1747336796209,0.04527107,103190.0,103180.0,0.23260207]
[1747336796430,0.05496183,103190.0,103180.0,0.22291074]
[1747336796606,0.00969104,103180.0,103170.0,0.31054826]
[1747336796829,0.22939856,103190.0,103170.0,0.31054826]
[1747336797001,0.23923306,103190.0,103180.0,0.21321904]
[1747336797420,0.24223306,103190.0,103180.0,0.21321913]
[1747336797900,0.24323306,103190.0,103180.0,0.21321913]
[1747336798104,0.23354249,103190.0,103180.0,0.21321913]
[1747336798743,0.23554249,103190.0,103180.0,0.20352762]
[1747336799147,0.23154249,103190.0,103180.0,0.20352762]
[1747336799567,0.23454249,103190.0,103180.0,0.20352762]
[1747336800617,0.22485173,103190.0,103180.0,0.20352781]
[1747336800799,0.23036087,103190.0,103180.0,0.19383601]
[1747336801015,0.22941913,103180.0,103170.0,0.20354754]
[1747336801212,0.22293188,103170.0,103160.0,0.9352467]
[1747336801381,0.22293188,103170.0,103160.0,1.05194251]
[1747336801577,0.02907708,103170.0,103160.0,0.85618251]
[1747336802230,0.02907699,103170.0,103160.0,0.86587609]
[1747336802406,0.01938444,103170.0,103160.0,0.86587609]
[1747336802606,0.22293179,103170.0,103160.0,0.65056996]
[1747336802786,0.22293179,103170.0,103160.0,0.66026326]
[1747336802989,0.02907699,103170.0,103160.0,0.66995628]
[1747336803558,0.00969208,103170.0,103160.0,1.00899928]
[1747336803688,0.0290767,103170.0,103160.0,1.00899928]
[1747336803891,0.02907661,103170.0,103160.0,1.00999928]
[1747336804420,0.03876906,103170.0,103160.0,1.00999928]
[1747336805022,0.03876493,103180.0,103170.0,0.22293188]
[1747336805219,0.03876493,103180.0,103170.0,0.32024128]
[1747336805427,0.03876493,103180.0,103170.0,0.65928428]
[1747336806002,0.02907332,103180.0,103170.0,0.65928428]
[1747336806200,0.03976493,103180.0,103170.0,0.65928428]
[1747336806379,0.03976493,103180.0,103170.0,0.32024128]
[1747336806677,0.04945663,103180.0,103170.0,0.32024128]
[1747336806838,0.24329264,103180.0,103170.0,0.32024128]
[1747336807040,0.24429349,103180.0,103170.0,0.32024128]
[1747336807259,0.04076568,103180.0,103170.0,0.32024128]
[1747336807807,0.23460169,103180.0,103170.0,0.3105492]
[1747336808411,0.23460169,103180.0,103170.0,0.32024147]
[1747336809558,0.24429349,103180.0,103170.0,0.32024147]
[1747336809815,0.01169104,103180.0,103170.0,0.32993364]
[1747336810014,0.03107398,103180.0,103170.0,0.67866872]
[1747336810222,0.04076568,103180.0,103170.0,0.67866872]
[1747336810396,0.04076568,103180.0,103170.0,0.33962572]
[1747336810597,0.24429349,103180.0,103170.0,0.33962572]
[1747336810862,0.23460245,103180.0,103170.0,0.32024147]
[1747336811034,0.23091951,103180.0,103170.0,0.30085684]
[1747336811241,0.23091951,103180.0,103170.0,0.31054939]
[1747336811448,0.22893962,103170.0,103160.0,0.53387359]
[1747336811797,0.22893962,103170.0,103160.0,0.65057024]
[1747336812000,0.01938482,103170.0,103160.0,0.67964976]
[1747336812214,0.01938425,103170.0,103160.0,1.01869276]
[1747336812389,0.00969198,103170.0,103160.0,1.01869276]
[1747336812589,0.02907633,103170.0,103160.0,1.01869276]
[1747336813647,0.02907633,103170.0,103160.0,1.01969276]
[1747336813860,0.22953962,103170.0,103160.0,0.0983094]
[1747336814075,0.24603962,103170.0,103160.0,0.001]
[1747336816299,0.24903962,103170.0,103160.0,0.001]
[1747336816691,0.02908215,103150.0,103140.0,0.56299577]
[1747336817056,0.02908215,103150.0,103140.0,1.00904392]
[1747336817057,0.0484711,103150.0,103140.0,1.00904392]
[1747336817256,0.03877658,103150.0,103140.0,1.00904392]
[1747336817610,0.24236348,103150.0,103140.0,1.00904392]
[1747336817810,0.21328133,103150.0,103140.0,0.00047925]
[1747336818010,0.24528133,103150.0,103140.0,0.00047925]
[1747336818402,0.24528133,103150.0,103140.0,0.0101748]
[1747336818603,0.2355869,103150.0,103140.0,0.19439043]
[1747336818836,0.03538876,103150.0,103140.0,0.20408598]
[1747336819036,0.22297501,103150.0,103140.0,0.57221452]
[1747336819242,0.23266962,103150.0,103140.0,0.57221452]
[1747336819439,0.23266962,103150.0,103140.0,0.56251962]